fUST/lending_fUST_20260604
["ID","MTS","AMOUNT","RATE_DAILY","PERIOD"]
[423983387,1780534246000,-5213.07,0.00019726,2]
[423983391,1780534246000,-941.91,0.00019726,2]
[423983386,1780534246000,-582.14,0.00019726,2]
[423983385,1780534246000,-190.95896965,0.00019726,2]
[423983389,1780534246000,-174.89,0.00019726,2]
[423983384,1780534246000,-1302.9661997,0.000197,2]
[423983388,1780534246000,-1060.41,0.00019726,2]
[423983392,1780534246000,-151.0,0.00019783,2]
[423983394,1780534246000,-6892.43175786,0.00019805,2]
[423983397,1780534246000,-344.46243596,0.00019805,2]
[423983393,1780534246000,-161.15672,0.00019791,2]
[423983396,1780534246000,-200.0,0.00019805,2]
[423983399,1780534246000,-5081.638429,0.00019815,2]
[423983398,1780534246000,-160.0,0.00019813,5]
[423983401,1780534246000,-5081.638429,0.00019815,2]
[423983400,1780534246000,-5081.638429,0.00019815,2]
[423983402,1780534246000,-5081.638429,0.00019815,2]
[423983403,1780534246000,-195417.14498539,0.00019815,2]
[423983374,1780534246000,-206.22,0.00019452,2]
[423983370,1780534246000,-582.14,0.00019452,2]
[423983395,1780534246000,-200.0,0.00019805,2]
[423983377,1780534246000,-676.97,0.00019452,2]
[423983378,1780534246000,-1901.87239373,0.000195,2]
[423983343,1780534246000,-300.0,0.00019178,2]
[423983347,1780534246000,-1060.41,0.00019178,2]
[423983349,1780534246000,-500.0,0.00019178,2]
[423983352,1780534246000,-941.91,0.00019178,2]
[423983341,1780534246000,-5081.638429,0.0001917,2]
[423983337,1780534246000,-5081.638429,0.0001917,2]
[423983344,1780534246000,-500.0,0.00019178,2]
[423983346,1780534246000,-5213.07,0.00019178,2]
[423983339,1780534246000,-5081.638429,0.0001917,2]
[423983353,1780534246000,-676.97,0.00019178,2]
[423983355,1780534246000,-153.32775,0.00019178,2]
[423983357,1780534246000,-1901.87239373,0.000192,2]
[423983356,1780534246000,-160.0,0.00019192,3]
[423983350,1780534246000,-500.0,0.00019178,2]
[423983362,1780534246000,-185.0,0.00019208,2]
[423983376,1780534246000,-941.91,0.00019452,2]
[423983366,1780534246000,-151.0,0.000193,2]
[423983369,1780534246000,-500.0,0.00019452,2]
[423983365,1780534246000,-1302.9661997,0.000193,2]
[423983360,1780534246000,-1836.0,0.00019208,2]
[423983367,1780534246000,-338.168473,0.00019331,2]
[423983364,1780534246000,-1901.87239373,0.000193,2]
[423983358,1780534246000,-1302.9661997,0.000192,2]
[423983354,1780534246000,-151.0,0.00019178,2]
[423983361,1780534246000,-3631.0,0.00019208,2]
[423983359,1780534246000,-1415.0,0.00019208,2]
[423983363,1780534246000,-379.645,0.00019275,2]
[423983368,1780534246000,-224.175266,0.00019345,2]
[423983408,1780534247000,-629.51686188,0.00013698,2]
[423983407,1780534247000,-6374.6232826,0.00019815,2]
[423983404,1780534247000,-4062.29922733,0.00019815,2]
[423983405,1780534247000,-426.30049523,0.00019815,2]
[423983406,1780534247000,-500.0,0.00013698,2]
[423983409,1780534247000,-500.0,0.00016986,2]
[423983413,1780534247000,-4102.01508422,0.00019815,2]
[423983411,1780534247000,-480.92,0.00017808,2]
[423983412,1780534247000,-676.97,0.00019726,2]
[423983417,1780534247000,-5000.0,0.00013561,2]
[423983419,1780534247000,-514.99,0.00013698,2]
[423983418,1780534247000,-500.0,0.00013698,2]
[423983420,1780534247000,-344.51000001,0.00013698,2]
[423983410,1780534247000,-500.0,0.0001726,2]
[423983422,1780534248000,-500.0,0.00013698,2]
[423983423,1780534248000,-500.0,0.00013698,2]
[423983421,1780534248000,-193.19999999,0.00013698,2]
[423983425,1780534248000,-500.0,0.00013972,2]
[423983429,1780534248000,-398.55508423,0.00014794,2]
[423983428,1780534248000,-500.0,0.0001452,2]
[423983426,1780534248000,-500.0,0.00013972,2]
[423983427,1780534248000,-500.0,0.00014246,2]
[423983424,1780534248000,-510.26,0.00013972,2]
[423983431,1780534251000,-176.97,0.00013972,2]
[423983430,1780534251000,-500.0,0.00013698,2]
[423983436,1780534277000,-397.85125961,0.00012328,2]
[423983437,1780534277000,-83.06874039,0.00012328,2]
[423983439,1780534280000,-426.15119389,0.00012328,2]
[423983438,1780534280000,-73.84880611,0.00012328,2]
[423983443,1780534412000,-500.0,0.00012329,2]
[423983445,1780534453000,250.19,8.205e-05,2]
[423983446,1780534473000,-398.55508423,0.00010959,2]
[423983449,1780534577000,-500.0,0.00010859,2]
[423983452,1780534667000,-500.00548176,0.00010642,2]
[423983453,1780534669000,225.18,8.205e-05,2]
[423983462,1780534886000,202.66,8.205e-05,2]
[423983467,1780535042000,-510.26,0.00010431,2]
[423983468,1780535044000,-176.97,0.00010431,2]
[423983469,1780535047000,-500.0,0.00010431,2]
[423983470,1780535050000,-500.0,0.00010431,2]
[423983471,1780535102000,182.39,8.205e-05,2]
[423983477,1780535317000,164.15,8.205e-05,2]
[423983612,1780535432000,-3153.0,0.00010556,2]
[423983739,1780535441000,-375.71,0.00012329,2]
[423983709,1780535441000,-300.0,0.00011177,2]
[423983713,1780535441000,-300.0,0.00011177,2]
[423983711,1780535441000,-300.0,0.00011177,2]
[423983699,1780535441000,-300.0,0.00011177,2]
[423983698,1780535441000,-3567.91157966,0.00011177,2]
[423983701,1780535441000,-300.0,0.00011177,2]
[423983697,1780535441000,-363.37682786,0.00010859,2]
[423983695,1780535441000,-1847.0,0.00010556,2]
[423983705,1780535441000,-300.0,0.00011177,2]
[423983702,1780535441000,-300.0,0.00011177,2]
[423983704,1780535441000,-300.0,0.00011177,2]
[423983700,1780535441000,-300.0,0.00011177,2]
[423983696,1780535441000,-2799.9992345,0.00010662,2]
[423983706,1780535441000,-300.0,0.00011177,2]
[423983736,1780535441000,-649.23,0.00012329,2]
[423983721,1780535441000,-3349.86,0.00012329,2]
[423983714,1780535441000,-300.0,0.00011177,2]
[423983703,1780535441000,-300.0,0.00011177,2]
[423983710,1780535441000,-300.0,0.00011177,2]
[423983722,1780535441000,-2791.55,0.00012329,2]
[423983726,1780535441000,-1938.58,0.00012329,2]
[423983731,1780535441000,-1121.86,0.00012329,2]
[423983729,1780535441000,-1346.24,0.00012329,2]
[423983735,1780535441000,-779.07,0.00012329,2]
[423983733,1780535441000,-934.89,0.00012329,2]
[423983728,1780535441000,-1615.48,0.00012329,2]
[423983738,1780535441000,-450.85,0.00012329,2]
[423983716,1780535441000,-152.0,0.00011945,2]
[423983708,1780535441000,-300.0,0.00011177,2]
[423983715,1780535441000,-600.0,0.000114,2]
[423983724,1780535441000,-2326.29,0.00012329,2]
[423983737,1780535441000,-541.02,0.00012329,2]
[423983719,1780535441000,-4019.83,0.00012329,2]
[423983712,1780535441000,-300.0,0.00011177,2]
[423983717,1780535441000,-152.0,0.00012229,2]
[423983781,1780535442000,-500.0,0.00013698,2]
[423983789,1780535442000,-500.0,0.00013698,2]
[423983786,1780535442000,-500.0,0.00013698,2]
[423983784,1780535442000,-500.0,0.00013698,2]
[423983785,1780535442000,-500.0,0.00013698,2]
[423983783,1780535442000,-500.0,0.00013698,2]
[423983776,1780535442000,-500.0,0.00013698,2]
[423983780,1780535442000,-500.0,0.00013698,2]
[423983779,1780535442000,-500.0,0.00013698,2]
[423983782,1780535442000,-500.0,0.00013698,2]
[423983775,1780535442000,-500.0,0.00013698,2]
[423983792,1780535442000,-400.6,0.00013698,2]
[423983778,1780535442000,-314.74062126,0.00013698,2]
[423983777,1780535442000,-500.0,0.00013698,2]
[423983796,1780535442000,-500.0,0.00013698,2]
[423983791,1780535442000,-500.0,0.00013698,2]
[423983802,1780535442000,-212.28,0.00013698,2]
[423983787,1780535442000,-500.0,0.00013698,2]
[423983794,1780535442000,-500.0,0.00013698,2]
[423983793,1780535442000,-500.0,0.00013698,2]
[423983795,1780535442000,-500.0,0.00013698,2]
[423983797,1780535442000,-314.37567727,0.00013698,2]
[423983798,1780535442000,-500.0,0.00013698,2]
[423983804,1780535442000,-500.0,0.00013698,2]
[423983803,1780535442000,-500.0,0.00013698,2]
[423983799,1780535442000,-500.0,0.00013698,2]
[423983801,1780535442000,-500.0,0.00013698,2]
[423983800,1780535442000,-727.21,0.00013698,2]
[423983774,1780535442000,-500.0,0.00013698,2]
[423983790,1780535442000,-500.0,0.00013698,2]
[423983773,1780535442000,-500.0,0.00013698,2]
[423983754,1780535442000,-500.0,0.00013696,2]
[423983770,1780535442000,-500.0,0.00013698,2]
[423983740,1780535442000,-313.09,0.00012329,2]
[423983742,1780535442000,-217.42,0.00012329,2]
[423983743,1780535442000,-181.19,0.00012329,2]
[423983741,1780535442000,-260.91,0.00012329,2]
[423983744,1780535442000,-150.99,0.00012329,2]
[423983745,1780535442000,-754.97,0.00012329,2]
[423983746,1780535442000,-720.0,0.00012539,2]
[423983755,1780535442000,-437.69683124,0.00013696,2]
[423983751,1780535442000,-500.0,0.00013696,2]
[423983752,1780535442000,-500.0,0.00013696,2]
[423983749,1780535442000,-227.64271894,0.00013598,2]
[423983748,1780535442000,-1322.7196961,0.00013507,2]
[423983756,1780535442000,-360.85570569,0.00013697,2]
[423983747,1780535442000,-183.0,0.00012909,2]
[423983771,1780535442000,-500.0,0.00013698,2]
[423983750,1780535442000,-500.0,0.00013696,2]
[423983758,1780535442000,-500.0,0.00013698,2]
[423983757,1780535442000,-647.63836457,0.00013697,2]
[423983767,1780535442000,-500.0,0.00013698,2]
[423983768,1780535442000,-500.0,0.00013698,2]
[423983769,1780535442000,-500.0,0.00013698,2]
[423983763,1780535442000,-500.0,0.00013698,2]
[423983760,1780535442000,-500.0,0.00013698,2]
[423983762,1780535442000,-500.0,0.00013698,2]
[423983766,1780535442000,-500.0,0.00013698,2]
[423983764,1780535442000,-500.0,0.00013698,2]
[423983759,1780535442000,-500.0,0.00013698,2]
[423983765,1780535442000,-500.81307342,0.00013698,2]
[423983761,1780535442000,-500.0,0.00013698,2]
[423983772,1780535442000,-500.0,0.00013698,2]
[423983753,1780535442000,-345.5809892,0.00013696,2]
[423983805,1780535442000,-500.0,0.00013698,2]
[423983788,1780535442000,-264.94053097,0.00013698,2]
[423983808,1780535442000,-288.30817495,0.00013698,2]
[423983840,1780535442000,-510.26,0.00013698,2]
[423983843,1780535442000,-500.0,0.00013698,2]
[423983844,1780535442000,-500.0,0.00013698,2]
[423983838,1780535442000,-500.0,0.00013698,2]
[423983841,1780535442000,-500.0,0.00013698,2]
[423983839,1780535442000,-500.0,0.00013698,2]
[423983842,1780535442000,-926.41,0.00013698,2]
[423983845,1780535442000,-500.0,0.00013698,2]
[423983846,1780535442000,-500.0,0.00013698,2]
[423983851,1780535442000,-500.0,0.00013698,2]
[423983853,1780535442000,-500.0,0.00013698,2]
[423983856,1780535442000,-2676.5,0.00013698,2]
[423983860,1780535442000,-500.0,0.00013698,2]
[423983852,1780535442000,-500.0,0.00013698,2]
[423983836,1780535442000,-500.0,0.00013698,2]
[423983859,1780535442000,-1088.07,0.00013698,2]
[423983855,1780535442000,-500.0,0.00013698,2]
[423983854,1780535442000,-500.0,0.00013698,2]
[423983861,1780535442000,-636.04,0.00013698,2]
[423983858,1780535442000,-192.44384642,0.00013698,2]
[423983862,1780535442000,-500.0,0.00013698,2]
[423983864,1780535442000,-500.0,0.00013698,2]
[423983863,1780535442000,-500.0,0.00013698,2]
[423983866,1780535442000,-500.0,0.00013698,2]
[423983865,1780535442000,-500.0,0.00013698,2]
[423983871,1780535442000,-574.06,0.00013698,2]
[423983867,1780535442000,-500.0,0.00013698,2]
[423983870,1780535442000,-710.59,0.00013698,2]
[423983869,1780535442000,-500.0,0.00013698,2]
[423983809,1780535442000,-500.0,0.00013698,2]
[423983857,1780535442000,-500.0,0.00013698,2]
[423983849,1780535442000,-500.0,0.00013698,2]
[423983868,1780535442000,-500.0,0.00013698,2]
[423983850,1780535442000,-500.0,0.00013698,2]
[423983848,1780535442000,-500.0,0.00013698,2]
[423983810,1780535442000,-274.65,0.00013698,2]
[423983806,1780535442000,-598.93,0.00013698,2]
[423983807,1780535442000,-500.0,0.00013698,2]
[423983816,1780535442000,-500.0,0.00013698,2]
[423983821,1780535442000,-500.0,0.00013698,2]
[423983822,1780535442000,-500.0,0.00013698,2]
[423983819,1780535442000,-500.0,0.00013698,2]
[423983820,1780535442000,-500.0,0.00013698,2]
[423983818,1780535442000,-500.0,0.00013698,2]
[423983811,1780535442000,-1198.05,0.00013698,2]
[423983814,1780535442000,-500.0,0.00013698,2]
[423983815,1780535442000,-500.0,0.00013698,2]
[423983812,1780535442000,-500.0,0.00013698,2]
[423983813,1780535442000,-500.0,0.00013698,2]
[423983817,1780535442000,-500.0,0.00013698,2]
[423983824,1780535442000,-500.0,0.00013698,2]
[423983823,1780535442000,-500.0,0.00013698,2]
[423983837,1780535442000,-500.0,0.00013698,2]
[423983831,1780535442000,-500.0,0.00013698,2]
[423983833,1780535442000,-500.0,0.00013698,2]
[423983830,1780535442000,-500.0,0.00013698,2]
[423983825,1780535442000,-500.0,0.00013698,2]
[423983832,1780535442000,-500.0,0.00013698,2]
[423983847,1780535442000,-500.0,0.00013698,2]
[423983826,1780535442000,-500.0,0.00013698,2]
[423983828,1780535442000,-500.0,0.00013698,2]
[423983835,1780535442000,-500.0,0.00013698,2]
[423983829,1780535442000,-500.0,0.00013698,2]
[423983827,1780535442000,-500.0,0.00013698,2]
[423983834,1780535442000,-500.0,0.00013698,2]
[423983911,1780535443000,-474.63708733,0.00013698,2]
[423983907,1780535443000,-500.0,0.00013698,2]
[423983916,1780535443000,-500.0,0.00013698,2]
[423983906,1780535443000,-500.0,0.00013698,2]
[423983901,1780535443000,-500.0,0.00013698,2]
[423983904,1780535443000,-500.0,0.00013698,2]
[423983905,1780535443000,-500.0,0.00013698,2]
[423983908,1780535443000,-500.0,0.00013698,2]
[423983896,1780535443000,-500.0,0.00013698,2]
[423983915,1780535443000,-500.0,0.00013698,2]
[423983914,1780535443000,-687.1,0.00013698,2]
[423983930,1780535443000,-500.0,0.00013698,2]
[423983909,1780535443000,-500.0,0.00013698,2]
[423983910,1780535443000,-467.88538189,0.00013698,2]
[423983913,1780535443000,-500.0,0.00013698,2]
[423983918,1780535443000,-500.0,0.00013698,2]
[423983928,1780535443000,-500.0,0.00013698,2]
[423983917,1780535443000,-2158.51,0.00013698,2]
[423983932,1780535443000,-500.0,0.00013698,2]
[423983934,1780535443000,-835.73,0.00013698,2]
[423983936,1780535443000,-500.0,0.00013698,2]
[423983899,1780535443000,-500.0,0.00013698,2]
[423983919,1780535443000,-500.0,0.00013698,2]
[423983912,1780535443000,-10361.32753078,0.00013698,2]
[423983897,1780535443000,-1169.27,0.00013698,2]
[423983886,1780535443000,-200.23490377,0.00013698,2]
[423983895,1780535443000,-500.0,0.00013698,2]
[423983920,1780535443000,-500.0,0.00013698,2]
[423983877,1780535443000,-500.0,0.00013698,2]
[423983876,1780535443000,-745.9,0.00013698,2]
[423983878,1780535443000,-500.0,0.00013698,2]
[423983875,1780535443000,-500.0,0.00013698,2]
[423983873,1780535443000,-331.8787889,0.00013698,2]
[423983874,1780535443000,-542.42,0.00013698,2]
[423983872,1780535443000,-500.0,0.00013698,2]
[423983879,1780535443000,-500.0,0.00013698,2]
[423983883,1780535443000,-2470.54,0.00013698,2]
[423983882,1780535443000,-500.0,0.00013698,2]
[423983884,1780535443000,-500.0,0.00013698,2]
[423983890,1780535443000,-500.0,0.00013698,2]
[423983885,1780535443000,-555.17,0.00013698,2]
[423983887,1780535443000,-1627.14,0.00013698,2]
[423983888,1780535443000,-500.0,0.00013698,2]
[423983889,1780535443000,-500.0,0.00013698,2]
[423983880,1780535443000,-541.8,0.00013698,2]
[423983892,1780535443000,-500.0,0.00013698,2]
[423983902,1780535443000,-500.0,0.00013698,2]
[423983903,1780535443000,-500.0,0.00013698,2]
[423983891,1780535443000,-500.0,0.00013698,2]
[423983894,1780535443000,-361.2370534,0.00013698,2]
[423983893,1780535443000,-500.8,0.00013698,2]
[423983898,1780535443000,-500.0,0.00013698,2]
[423983900,1780535443000,-500.0,0.00013698,2]
[423983924,1780535443000,-778.38,0.00013698,2]
[423983922,1780535443000,-500.0,0.00013698,2]
[423983926,1780535443000,-411.58412289,0.00013698,2]
[423983975,1780535443000,-500.0,0.00013971,2]
[423983974,1780535443000,-500.0,0.00013971,2]
[423983972,1780535443000,-500.0,0.00013971,2]
[423983976,1780535443000,-178.05424015,0.00013972,2]
[423983973,1780535443000,-500.0,0.00013971,2]
[423983977,1780535443000,-321.94575985,0.00013972,2]
[423983979,1780535443000,-500.0,0.00013972,2]
[423983989,1780535443000,-500.0,0.00013972,2]
[423983978,1780535443000,-151.86193415,0.00013972,2]
[423983983,1780535443000,-500.0,0.00013972,2]
[423983982,1780535443000,-500.0,0.00013972,2]
[423983966,1780535443000,-500.0,0.00013698,2]
[423983980,1780535443000,-500.0,0.00013972,2]
[423983985,1780535443000,-165.59961268,0.00013972,2]
[423983984,1780535443000,-438.53930496,0.00013972,2]
[423983986,1780535443000,-500.0,0.00013972,2]
[423983987,1780535443000,-500.0,0.00013972,2]
[423983988,1780535443000,-515.17,0.00013972,2]
[423983992,1780535443000,-500.0,0.00013972,2]
[423983993,1780535443000,-500.0,0.00013972,2]
[423983991,1780535443000,-500.0,0.00013972,2]
[423983994,1780535443000,-500.8052468,0.00013972,2]
[423983995,1780535443000,-500.0,0.00013972,2]
[423983923,1780535443000,-500.0,0.00013698,2]
[423983990,1780535443000,-215.37422713,0.00013972,2]
[423983971,1780535443000,-227.64271894,0.00013941,2]
[423983981,1780535443000,-500.0,0.00013972,2]
[423983969,1780535443000,-500.0,0.00013698,2]
[423983921,1780535443000,-500.0,0.00013698,2]
[423983967,1780535443000,-500.0,0.00013698,2]
[423983937,1780535443000,-500.0,0.00013698,2]
[423983941,1780535443000,-500.0,0.00013698,2]
[423983939,1780535443000,-162.56758853,0.00013698,2]
[423983940,1780535443000,-519.26,0.00013698,2]
[423983942,1780535443000,-467.95381726,0.00013698,2]
[423983944,1780535443000,-433.22218445,0.00013698,2]
[423983947,1780535443000,-320.93944763,0.00013698,2]
[423983946,1780535443000,-500.0,0.00013698,2]
[423983951,1780535443000,-179.06055237,0.00013698,2]
[423983952,1780535443000,-564.35,0.00013698,2]
[423983938,1780535443000,-500.0,0.00013698,2]
[423983968,1780535443000,-688.21,0.00013698,2]
[423983970,1780535443000,-864.0,0.00013793,2]
[423983960,1780535443000,-1130.97,0.00013698,2]
[423983965,1780535443000,-500.0,0.00013698,2]
[423983958,1780535443000,-500.0,0.00013698,2]
[423983956,1780535443000,-167.49780741,0.00013698,2]
[423983957,1780535443000,-500.0,0.00013698,2]
[423983953,1780535443000,-316.04082951,0.00013698,2]
[423983961,1780535443000,-680.27,0.00013698,2]
[423983963,1780535443000,-500.0,0.00013698,2]
[423983964,1780535443000,-500.0,0.00013698,2]
[423983955,1780535443000,-16.46136308,0.00013698,2]
[423984095,1780535444000,-519.26,0.00013972,2]
[423984091,1780535444000,-835.73,0.00013972,2]
[423984089,1780535444000,-542.88393569,0.00013972,2]
[423984083,1780535444000,-2158.51,0.00013972,2]
[423984090,1780535444000,-778.38,0.00013972,2]
[423984087,1780535444000,-500.0,0.00013972,2]
[423984088,1780535444000,-500.0,0.00013972,2]
[423984086,1780535444000,-500.0,0.00013972,2]
[423984084,1780535444000,-500.0,0.00013972,2]
[423984092,1780535444000,-500.0,0.00013972,2]
[423984093,1780535444000,-500.0,0.00013972,2]
[423984094,1780535444000,-500.0,0.00013972,2]
[423984085,1780535444000,-565.05540216,0.00013972,2]
[423984064,1780535444000,-555.17,0.00013972,2]
[423984080,1780535444000,-687.1,0.00013972,2]
[423984082,1780535444000,-500.0,0.00013972,2]
[423984079,1780535444000,-500.0,0.00013972,2]
[423984074,1780535444000,-500.0,0.00013972,2]
[423984076,1780535444000,-500.0,0.00013972,2]
[423984077,1780535444000,-500.0,0.00013972,2]
[423984078,1780535444000,-11303.85,0.00013972,2]
[423984075,1780535444000,-500.0,0.00013972,2]
[423984073,1780535444000,-460.53,0.00013972,2]
[423984061,1780535444000,-500.0,0.00013972,2]
[423984066,1780535444000,-502.55340743,0.00013972,2]
[423984097,1780535444000,-500.0,0.00013972,2]
[423984081,1780535444000,-500.0,0.00013972,2]
[423984101,1780535444000,-500.0,0.00013972,2]
[423984123,1780535444000,-500.0,0.00014246,2]
[423984104,1780535444000,-500.0,0.00013972,2]
[423984125,1780535444000,-727.21,0.00014246,2]
[423984126,1780535444000,-500.0,0.00014246,2]
[423984124,1780535444000,-500.0,0.00014246,2]
[423984111,1780535444000,-688.21,0.00013972,2]
[423984122,1780535444000,-500.0,0.00014246,2]
[423984120,1780535444000,-522.04,0.00014246,2]
[423984119,1780535444000,-500.0,0.00014246,2]
[423984115,1780535444000,-500.0,0.00014245,2]
[423984117,1780535444000,-635.42881924,0.00014246,2]
[423984121,1780535444000,-500.0,0.00014246,2]
[423984118,1780535444000,-509.79101857,0.00014246,2]
[423984116,1780535444000,-500.0,0.00014246,2]
[423984098,1780535444000,-1016.327686,0.00013972,2]
[423984114,1780535444000,-500.0,0.00014245,2]
[423984112,1780535444000,-500.0,0.00013972,2]
[423984110,1780535444000,-500.0,0.00013972,2]
[423984103,1780535444000,-564.35,0.00013972,2]
[423984105,1780535444000,-500.0,0.00013972,2]
[423984106,1780535444000,-1130.97,0.00013972,2]
[423984102,1780535444000,-500.0,0.00013972,2]
[423984100,1780535444000,-1016.327686,0.00013972,2]
[423984109,1780535444000,-500.0,0.00013972,2]
[423984096,1780535444000,-1016.327686,0.00013972,2]
[423984107,1780535444000,-680.27,0.00013972,2]
[423984099,1780535444000,-1016.327686,0.00013972,2]
[423984108,1780535444000,-500.0,0.00013972,2]
[423984113,1780535444000,-500.0,0.00014245,2]
[423984065,1780535444000,-1627.14,0.00013972,2]
[423984062,1780535444000,-2470.54,0.00013972,2]
[423984060,1780535444000,-541.8,0.00013972,2]
[423984011,1780535444000,-48.30573031,0.00013972,2]
[423984009,1780535444000,-500.0,0.00013972,2]
[423984019,1780535444000,-500.0,0.00013972,2]
[423984020,1780535444000,-500.0,0.00013972,2]
[423984021,1780535444000,-500.0,0.00013972,2]
[423984023,1780535444000,-500.0,0.00013972,2]
[423984010,1780535444000,-598.93,0.00013972,2]
[423984018,1780535444000,-500.0,0.00013972,2]
[423984024,1780535444000,-500.0,0.00013972,2]
[423984022,1780535444000,-500.0,0.00013972,2]
[423984029,1780535444000,-500.0,0.00013972,2]
[423984028,1780535444000,-500.0,0.00013972,2]
[423984027,1780535444000,-500.0,0.00013972,2]
[423984026,1780535444000,-500.0,0.00013972,2]
[423984017,1780535444000,-500.0,0.00013972,2]
[423984016,1780535444000,-500.0,0.00013972,2]
[423984012,1780535444000,-170.83705889,0.00013972,2]
[423984015,1780535444000,-185.45,0.00013972,2]
[423984063,1780535444000,-500.0,0.00013972,2]
[423984002,1780535444000,-500.0,0.00013972,2]
[423984003,1780535444000,-500.0,0.00013972,2]
[423983996,1780535444000,-500.0,0.00013972,2]
[423984001,1780535444000,-500.0,0.00013972,2]
[423983999,1780535444000,-500.0,0.00013972,2]
[423983998,1780535444000,-500.0,0.00013972,2]
[423984000,1780535444000,-500.0,0.00013972,2]
[423984005,1780535444000,-576.23,0.00013972,2]
[423984007,1780535444000,-500.0,0.00013972,2]
[423984008,1780535444000,-500.0,0.00013972,2]
[423984004,1780535444000,-500.0,0.00013972,2]
[423984006,1780535444000,-727.21,0.00013972,2]
[423984013,1780535444000,-1198.05,0.00013972,2]
[423984014,1780535444000,-500.0,0.00013972,2]
[423984025,1780535444000,-500.0,0.00013972,2]
[423984031,1780535444000,-500.0,0.00013972,2]
[423983997,1780535444000,-500.0,0.00013972,2]
[423984032,1780535444000,-500.0,0.00013972,2]
[423984056,1780535444000,-745.9,0.00013972,2]
[423984054,1780535444000,-710.59,0.00013972,2]
[423984051,1780535444000,-500.0,0.00013972,2]
[423984057,1780535444000,-500.0,0.00013972,2]
[423984053,1780535444000,-500.0,0.00013972,2]
[423984055,1780535444000,-500.0,0.00013972,2]
[423984052,1780535444000,-500.0,0.00013972,2]
[423984059,1780535444000,-500.0,0.00013972,2]
[423984068,1780535444000,-500.0,0.00013972,2]
[423984070,1780535444000,-500.0,0.00013972,2]
[423984069,1780535444000,-500.0,0.00013972,2]
[423984072,1780535444000,-1169.27,0.00013972,2]
[423984058,1780535444000,-626.8,0.00013972,2]
[423984033,1780535444000,-382.85294134,0.00013972,2]
[423984067,1780535444000,-500.0,0.00013972,2]
[423984050,1780535444000,-500.0,0.00013972,2]
[423984071,1780535444000,-500.0,0.00013972,2]
[423984049,1780535444000,-500.0,0.00013972,2]
[423984045,1780535444000,-1088.07,0.00013972,2]
[423984039,1780535444000,-500.0,0.00013972,2]
[423984036,1780535444000,-500.0,0.00013972,2]
[423984040,1780535444000,-500.0,0.00013972,2]
[423984041,1780535444000,-500.0,0.00013972,2]
[423984043,1780535444000,-1363.99456517,0.00013972,2]
[423984035,1780535444000,-500.0,0.00013972,2]
[423984042,1780535444000,-500.0,0.00013972,2]
[423984038,1780535444000,-500.0,0.00013972,2]
[423984047,1780535444000,-636.04,0.00013972,2]
[423984037,1780535444000,-500.0,0.00013972,2]
[423984046,1780535444000,-500.0,0.00013972,2]
[423984030,1780535444000,-926.41,0.00013972,2]
[423984048,1780535444000,-500.0,0.00013972,2]